[Event "*** Titled Tuesday Blitz"]
[Site "Chess.com"]
[Date "2020.04.21"]
[Round "2"]
[White "gusmaster2262"]
[Black "ADODOVE"]
[Result "0-1"]
[WhiteElo "2343"]
[BlackElo "1907"]
[TimeControl "180+1"]
[EndTime "10:17:24 PDT"]
[Termination "ADODOVE won on time"]

1. d4 {[%clk 0:03:00.9]} 1... Nf6 {[%clk 0:02:58.3]} 2. c4 {[%clk 0:02:59.4]}
2... e6 {[%clk 0:02:57.3]} 3. Nc3 {[%clk 0:02:58.2]} 3... Bb4 {[%clk 0:02:56]}
4. e3 {[%clk 0:02:57.3]} 4... O-O {[%clk 0:02:53.2]} 5. Ne2 {[%clk 0:02:55.1]}
5... d5 {[%clk 0:02:50.1]} 6. a3 {[%clk 0:02:50.8]} 6... Bd6 {[%clk 0:02:49.2]}
7. c5 {[%clk 0:02:45.9]} 7... Be7 {[%clk 0:02:48.9]} 8. Ng3 {[%clk 0:02:30.5]}
8... b6 {[%clk 0:02:47.7]} 9. b4 {[%clk 0:02:29.9]} 9... a5 {[%clk 0:02:47.4]}
10. Bd2 {[%clk 0:02:24.7]} 10... Ba6 {[%clk 0:02:18.6]} 11. b5 {[%clk
0:02:16.5]} 11... Bc8 {[%clk 0:02:17.4]} 12. c6 {[%clk 0:02:12.3]} 12... e5
{[%clk 0:01:59.1]} 13. dxe5 {[%clk 0:02:05.1]} 13... Ng4 {[%clk 0:01:57.7]} 14.
Bd3 {[%clk 0:01:43.5]} 14... Nxe5 {[%clk 0:01:52.3]} 15. Bxh7+ {[%clk
0:01:39.9]} 15... Kxh7 {[%clk 0:01:48]} 16. Qh5+ {[%clk 0:01:38.5]} 16... Kg8
{[%clk 0:01:48.2]} 17. Qxe5 {[%clk 0:01:37.7]} 17... Bf6 {[%clk 0:01:38.9]} 18.
Qh5 {[%clk 0:01:31]} 18... d4 {[%clk 0:01:36.3]} 19. exd4 {[%clk 0:01:25.3]}
19... Re8+ {[%clk 0:01:35.2]} 20. Nge2 {[%clk 0:01:19.5]} 20... Qxd4 {[%clk
0:01:29.3]} 21. Be3 {[%clk 0:00:57.1]} 21... Qxc3+ {[%clk 0:01:15.8]} 22. Nxc3
{[%clk 0:00:55.7]} 22... Bxc3+ {[%clk 0:01:15.5]} 23. Ke2 {[%clk 0:00:54.7]}
23... Bxa1 {[%clk 0:01:14.3]} 24. Rxa1 {[%clk 0:00:53.5]} 24... Be6 {[%clk
0:01:13.9]} 25. Qh4 {[%clk 0:00:47.3]} 25... Nxc6 {[%clk 0:00:55.7]} 26. bxc6
{[%clk 0:00:39.2]} 26... Rad8 {[%clk 0:00:56.6]} 27. Rd1 {[%clk 0:00:34]} 27...
Rd5 {[%clk 0:00:52.6]} 28. Rxd5 {[%clk 0:00:30.3]} 28... Bxd5 {[%clk 0:00:51.8]}
29. Qg3 {[%clk 0:00:23.9]} 29... Re7 {[%clk 0:00:41.2]} 30. Kd2 {[%clk
0:00:15.2]} 30... Bxc6 {[%clk 0:00:39.6]} 31. Bf4 {[%clk 0:00:12.8]} 31... Rd7+
{[%clk 0:00:39.1]} 32. Kc3 {[%clk 0:00:09]} 32... b5 {[%clk 0:00:38.8]} 33. Bxc7
{[%clk 0:00:06.2]} 33... b4+ {[%clk 0:00:38.6]} 34. axb4 {[%clk 0:00:03.1]}
34... axb4+ {[%clk 0:00:39.5]} 35. Kxb4 {[%clk 0:00:02.4]} 35... f6 {[%clk
0:00:36.3]} 0-1

[Event "*** Titled Tuesday Blitz"]
[Site "Chess.com"]
[Date "2020.04.21"]
[Round "2"]
[White "chito89"]
[Black "Shoytan"]
[Result "0-1"]
[WhiteElo "2755"]
[BlackElo "2543"]
[TimeControl "180+1"]
[EndTime "10:17:26 PDT"]
[Termination "Shoytan won on time"]

1. d4 {[%clk 0:03:00.9]} 1... Nf6 {[%clk 0:02:59.2]} 2. c4 {[%clk 0:03:00.2]}
2... g6 {[%clk 0:02:59.7]} 3. Nc3 {[%clk 0:03:00]} 3... Bg7 {[%clk 0:03:00.1]}
4. e4 {[%clk 0:02:57.9]} 4... O-O {[%clk 0:03:00.5]} 5. h3 {[%clk 0:02:57.6]}
5... d6 {[%clk 0:03:00.6]} 6. Be3 {[%clk 0:02:56.4]} 6... e5 {[%clk 0:02:50.5]}
7. d5 {[%clk 0:02:55.9]} 7... Na6 {[%clk 0:02:50.8]} 8. g4 {[%clk 0:02:52]} 8...
Nc5 {[%clk 0:02:48.3]} 9. Qc2 {[%clk 0:02:52.3]} 9... c6 {[%clk 0:02:46.6]} 10.
Nf3 {[%clk 0:02:51.1]} 10... cxd5 {[%clk 0:02:45.1]} 11. cxd5 {[%clk 0:02:49.9]}
11... Bd7 {[%clk 0:02:38.4]} 12. Nd2 {[%clk 0:02:48]} 12... Rc8 {[%clk
0:02:36.4]} 13. Be2 {[%clk 0:02:20.2]} 13... b5 {[%clk 0:02:32.3]} 14. g5 {[%clk
0:02:16]} 14... Nh5 {[%clk 0:02:31.2]} 15. Bxh5 {[%clk 0:02:02.4]} 15... gxh5
{[%clk 0:02:32.1]} 16. Nb3 {[%clk 0:01:12.5]} 16... Na4 {[%clk 0:01:54.1]} 17.
Qd2 {[%clk 0:01:09.9]} 17... Nxc3 {[%clk 0:01:53.1]} 18. bxc3 {[%clk 0:01:10.3]}
18... Rc4 {[%clk 0:01:53.4]} 19. Qd3 {[%clk 0:01:04.3]} 19... Qc7 {[%clk
0:01:51.5]} 20. Rc1 {[%clk 0:01:02.8]} 20... Rc8 {[%clk 0:01:48.8]} 21. Kf1
{[%clk 0:00:24.4]} 21... a5 {[%clk 0:01:38.3]} 22. Kg2 {[%clk 0:00:23.2]} 22...
a4 {[%clk 0:01:37.9]} 23. Nd2 {[%clk 0:00:22.8]} 23... Rxc3 {[%clk 0:01:38.1]}
24. Rxc3 {[%clk 0:00:23.4]} 24... Qxc3 {[%clk 0:01:38.8]} 25. Qe2 {[%clk
0:00:24.1]} 25... h4 {[%clk 0:01:29.4]} 26. Qh5 {[%clk 0:00:19.8]} 26... Qb2
{[%clk 0:01:21.9]} 27. Nf3 {[%clk 0:00:18.6]} 27... Rc3 {[%clk 0:01:18.4]} 28.
Re1 {[%clk 0:00:15.2]} 28... Qxa2 {[%clk 0:01:13.5]} 29. Nxh4 {[%clk 0:00:15.3]}
29... Qc2 {[%clk 0:01:09.5]} 30. Qf3 {[%clk 0:00:15.1]} 30... a3 {[%clk
0:01:00.1]} 31. Nf5 {[%clk 0:00:15.6]} 31... Bxf5 {[%clk 0:00:59.8]} 32. Qxf5
{[%clk 0:00:16.1]} 32... Rc4 {[%clk 0:00:56.7]} 33. Bb6 {[%clk 0:00:10.4]} 33...
a2 {[%clk 0:00:52]} 34. Bd8 {[%clk 0:00:06.3]} 34... Rxe4 {[%clk 0:00:43.4]} 35.
Rxe4 {[%clk 0:00:04.9]} 35... a1=Q {[%clk 0:00:42.3]} 36. Bf6 {[%clk 0:00:05.4]}
36... Qab1 {[%clk 0:00:38.7]} 0-1

[Event "*** Titled Tuesday Blitz"]
[Site "Chess.com"]
[Date "2020.04.21"]
[Round "2"]
[White "HarryCun"]
[Black "ApacheSVD"]
[Result "0-1"]
[WhiteElo "2155"]
[BlackElo "2422"]
[TimeControl "180+1"]
[EndTime "10:17:27 PDT"]
[Termination "ApacheSVD won by resignation"]

1. Nf3 {[%clk 0:03:00.9]} 1... c5 {[%clk 0:02:59.9]} 2. g3 {[%clk 0:02:59.9]}
2... Nc6 {[%clk 0:02:53.5]} 3. Bg2 {[%clk 0:02:59.8]} 3... e5 {[%clk 0:02:54.2]}
4. d3 {[%clk 0:02:59]} 4... d5 {[%clk 0:02:51.8]} 5. O-O {[%clk 0:02:57.7]} 5...
Nf6 {[%clk 0:02:52.1]} 6. Nbd2 {[%clk 0:02:53.4]} 6... Be7 {[%clk 0:02:51.5]} 7.
e4 {[%clk 0:02:53.3]} 7... O-O {[%clk 0:02:51.5]} 8. Re1 {[%clk 0:02:51.3]} 8...
Qc7 {[%clk 0:02:50.7]} 9. b3 {[%clk 0:02:49.3]} 9... Re8 {[%clk 0:02:44.2]} 10.
Bb2 {[%clk 0:02:43.6]} 10... d4 {[%clk 0:02:38.6]} 11. Qe2 {[%clk 0:02:42.3]}
11... b5 {[%clk 0:02:37.5]} 12. a3 {[%clk 0:02:40]} 12... a5 {[%clk 0:02:37.3]}
13. Nf1 {[%clk 0:02:39.2]} 13... Ba6 {[%clk 0:02:32.2]} 14. h3 {[%clk 0:02:36]}
14... c4 {[%clk 0:02:29.6]} 15. g4 {[%clk 0:02:29.5]} 15... Qd6 {[%clk
0:02:12.2]} 16. Ng3 {[%clk 0:02:24.9]} 16... g6 {[%clk 0:02:11.7]} 17. Nh2
{[%clk 0:02:19.5]} 17... Nd7 {[%clk 0:02:10.5]} 18. Bc1 {[%clk 0:02:10.9]} 18...
Nc5 {[%clk 0:02:06.6]} 19. g5 {[%clk 0:01:37.7]} 19... cxb3 {[%clk 0:01:55.1]}
20. Ng4 {[%clk 0:01:19.9]} 20... Nd8 {[%clk 0:01:28.9]} 21. h4 {[%clk
0:01:03.3]} 21... bxc2 {[%clk 0:01:25.2]} 22. Qf3 {[%clk 0:00:55.4]} 22... b4
{[%clk 0:01:07.8]} 23. Nh6+ {[%clk 0:00:37.9]} 23... Kf8 {[%clk 0:00:45.6]} 24.
h5 {[%clk 0:00:28.7]} 24... Nxd3 {[%clk 0:00:38.4]} 25. hxg6 {[%clk 0:00:15.6]}
25... hxg6 {[%clk 0:00:34.5]} 26. Rf1 {[%clk 0:00:14.7]} 26... Nxc1 {[%clk
0:00:34.2]} 27. Raxc1 {[%clk 0:00:13.8]} 27... Bxf1 {[%clk 0:00:33.4]} 28. Rxf1
{[%clk 0:00:14.7]} 28... Bxg5 {[%clk 0:00:32.9]} 29. Ng4 {[%clk 0:00:14.5]}
29... c1=Q {[%clk 0:00:28.9]} 30. Rxc1 {[%clk 0:00:13.5]} 30... Bxc1 {[%clk
0:00:29.8]} 31. Nf6 {[%clk 0:00:13.4]} 31... Bf4 {[%clk 0:00:21.5]} 32. Qb3
{[%clk 0:00:09.6]} 32... Qxf6 {[%clk 0:00:20.1]} 0-1

[Event "*** Titled Tuesday Blitz"]
[Site "Chess.com"]
[Date "2020.04.21"]
[Round "2"]
[White "AlexandraSamaganova"]
[Black "kingofthenil"]
[Result "0-1"]
[WhiteElo "2112"]
[BlackElo "2533"]
[TimeControl "180+1"]
[EndTime "10:17:28 PDT"]
[Termination "kingofthenil won by checkmate"]

1. c4 {[%clk 0:03:00.9]} 1... e5 {[%clk 0:02:57.7]} 2. Nc3 {[%clk 0:02:59.3]}
2... Nf6 {[%clk 0:02:56.6]} 3. Nf3 {[%clk 0:02:58.7]} 3... Nc6 {[%clk
0:02:55.8]} 4. a3 {[%clk 0:02:50.9]} 4... g6 {[%clk 0:02:52.5]} 5. b4 {[%clk
0:02:48.5]} 5... d6 {[%clk 0:02:45.9]} 6. e3 {[%clk 0:02:46.5]} 6... Bg7 {[%clk
0:02:45.5]} 7. Bb2 {[%clk 0:02:45.8]} 7... O-O {[%clk 0:02:45.4]} 8. Be2 {[%clk
0:02:42]} 8... h6 {[%clk 0:02:39.4]} 9. d4 {[%clk 0:02:39.9]} 9... Bg4 {[%clk
0:02:14]} 10. d5 {[%clk 0:02:27.9]} 10... Ne7 {[%clk 0:02:13.1]} 11. O-O {[%clk
0:02:26.4]} 11... Nh7 {[%clk 0:01:52.7]} 12. Nd2 {[%clk 0:02:11.8]} 12... Bd7
{[%clk 0:01:52.2]} 13. Nb3 {[%clk 0:02:07.5]} 13... f5 {[%clk 0:01:49.5]} 14. f3
{[%clk 0:02:03]} 14... Nf6 {[%clk 0:01:38.2]} 15. c5 {[%clk 0:01:58]} 15... g5
{[%clk 0:01:32.6]} 16. f4 {[%clk 0:01:40.1]} 16... Ng6 {[%clk 0:01:28]} 17. g3
{[%clk 0:01:24.8]} 17... exf4 {[%clk 0:01:17.1]} 18. exf4 {[%clk 0:01:22.4]}
18... Ne4 {[%clk 0:01:13.4]} 19. Rc1 {[%clk 0:01:15.7]} 19... Kh7 {[%clk
0:00:59.7]} 20. Qd3 {[%clk 0:01:07.4]} 20... gxf4 {[%clk 0:00:55.8]} 21. gxf4
{[%clk 0:01:07.1]} 21... Qh4 {[%clk 0:00:53.6]} 22. Qf3 {[%clk 0:00:56.4]} 22...
Rae8 {[%clk 0:00:48.4]} 23. Bd3 {[%clk 0:00:44]} 23... Nxc3 {[%clk 0:00:38.9]}
24. Bxc3 {[%clk 0:00:42.3]} 24... Bxc3 {[%clk 0:00:38]} 25. Rxc3 {[%clk
0:00:43.2]} 25... Qg4+ {[%clk 0:00:38.8]} 26. Qxg4 {[%clk 0:00:41.3]} 26... fxg4
{[%clk 0:00:39.7]} 27. Bxg6+ {[%clk 0:00:38.4]} 27... Kxg6 {[%clk 0:00:39.2]}
28. cxd6 {[%clk 0:00:38.7]} 28... cxd6 {[%clk 0:00:38.9]} 29. Rc7 {[%clk
0:00:37.9]} 29... Bb5 {[%clk 0:00:30.2]} 30. Rf2 {[%clk 0:00:34.6]} 30... h5
{[%clk 0:00:26.1]} 31. Nd4 {[%clk 0:00:33.8]} 31... Bd3 {[%clk 0:00:20.6]} 32.
Ne6 {[%clk 0:00:33.5]} 32... Rf5 {[%clk 0:00:18.2]} 33. Rg7+ {[%clk 0:00:29.1]}
33... Kf6 {[%clk 0:00:16.7]} 34. Rxb7 {[%clk 0:00:21.6]} 34... Rxd5 {[%clk
0:00:16.5]} 35. Nc7 {[%clk 0:00:20.6]} 35... Re1+ {[%clk 0:00:16.2]} 36. Kg2
{[%clk 0:00:21.1]} 36... Be4+ {[%clk 0:00:16.7]} 37. Kg3 {[%clk 0:00:21.3]}
37... Rd3+ {[%clk 0:00:17]} 38. Kh4 {[%clk 0:00:21.3]} 38... Rh3# {[%clk
0:00:16.9]} 0-1

[Event "*** Titled Tuesday Blitz"]
[Site "Chess.com"]
[Date "2020.04.21"]
[Round "2"]
[White "Zq1"]
[Black "Richarzard69"]
[Result "0-1"]
[WhiteElo "2562"]
[BlackElo "2258"]
[TimeControl "180+1"]
[EndTime "10:17:29 PDT"]
[Termination "Richarzard69 won by resignation"]

1. d4 {[%clk 0:03:00.9]} 1... d5 {[%clk 0:02:54]} 2. c4 {[%clk 0:03:00.9]} 2...
c6 {[%clk 0:02:53.6]} 3. cxd5 {[%clk 0:03:00.9]} 3... cxd5 {[%clk 0:02:54.5]} 4.
Bg5 {[%clk 0:03:00.8]} 4... Nc6 {[%clk 0:02:48.4]} 5. Nc3 {[%clk 0:03:00.8]}
5... Bf5 {[%clk 0:02:44.8]} 6. e3 {[%clk 0:02:58]} 6... Nf6 {[%clk 0:02:30.3]}
7. Bxf6 {[%clk 0:02:56.8]} 7... gxf6 {[%clk 0:02:31.2]} 8. Nge2 {[%clk
0:02:53.1]} 8... e6 {[%clk 0:02:28.5]} 9. g3 {[%clk 0:02:50.5]} 9... Nb4 {[%clk
0:02:20.2]} 10. Qa4+ {[%clk 0:02:48.8]} 10... Qd7 {[%clk 0:02:20]} 11. Qxd7+
{[%clk 0:02:45.1]} 11... Kxd7 {[%clk 0:02:20.9]} 12. Kd2 {[%clk 0:02:36.8]}
12... Nd3 {[%clk 0:02:15]} 13. f3 {[%clk 0:02:28.4]} 13... Nxb2 {[%clk
0:02:11.3]} 14. Nf4 {[%clk 0:02:26.4]} 14... Rc8 {[%clk 0:02:05.8]} 15. e4
{[%clk 0:02:22.2]} 15... Bb4 {[%clk 0:02:00.1]} 16. Bb5+ {[%clk 0:02:13.6]}
16... Kd6 {[%clk 0:01:52.7]} 17. Rhc1 {[%clk 0:02:06.9]} 17... dxe4 {[%clk
0:01:52.2]} 18. fxe4 {[%clk 0:01:41.6]} 18... Bxe4 {[%clk 0:01:51.1]} 19. Ne2
{[%clk 0:01:40.8]} 19... a6 {[%clk 0:01:45.9]} 20. Ke3 {[%clk 0:01:38.7]} 20...
Bg6 {[%clk 0:01:35.8]} 21. a3 {[%clk 0:01:26.8]} 21... Bxc3 {[%clk 0:01:33.1]}
22. Nxc3 {[%clk 0:01:23]} 22... axb5 {[%clk 0:01:09.7]} 23. Nxb5+ {[%clk
0:01:21.6]} 23... Kd7 {[%clk 0:01:09.6]} 24. Na7 {[%clk 0:01:17.3]} 24... Ra8
{[%clk 0:01:04.3]} 25. Nb5 {[%clk 0:01:17.2]} 25... Rhc8 {[%clk 0:00:59.1]} 26.
Rxc8 {[%clk 0:01:15.9]} 26... Rxc8 {[%clk 0:00:58]} 27. Ra2 {[%clk 0:01:16.5]}
27... Nc4+ {[%clk 0:00:55.2]} 28. Kf4 {[%clk 0:01:16]} 28... e5+ {[%clk
0:00:54.2]} 29. dxe5 {[%clk 0:01:15.5]} 29... fxe5+ {[%clk 0:00:55.1]} 30. Kg5
{[%clk 0:01:15.3]} 30... e4 {[%clk 0:00:52.8]} 31. h4 {[%clk 0:01:06.6]} 31...
e3 {[%clk 0:00:51]} 32. h5 {[%clk 0:01:06.5]} 32... Bd3 {[%clk 0:00:49]} 33. Nc3
{[%clk 0:01:05.8]} 33... Re8 {[%clk 0:00:43.7]} 34. Ne2 {[%clk 0:01:04.8]} 34...
Bxe2 {[%clk 0:00:41.4]} 35. Rxe2 {[%clk 0:01:04]} 35... Nxa3 {[%clk 0:00:38.7]}
36. Kh6 {[%clk 0:01:01.8]} 36... Nb5 {[%clk 0:00:38.2]} 37. Kxh7 {[%clk
0:01:01.9]} 37... Nc3 {[%clk 0:00:38]} 38. Re1 {[%clk 0:01:00.9]} 38... e2
{[%clk 0:00:38.3]} 39. Kg7 {[%clk 0:01:00.2]} 39... Re3 {[%clk 0:00:32.5]} 40.
g4 {[%clk 0:00:58.7]} 40... Ke6 {[%clk 0:00:23.1]} 41. g5 {[%clk 0:00:52.9]}
41... Rg3 {[%clk 0:00:21.6]} 42. g6 {[%clk 0:00:53]} 42... fxg6 {[%clk
0:00:21.5]} 43. h6 {[%clk 0:00:53.4]} 43... Ke5 {[%clk 0:00:22.1]} 44. h7 {[%clk
0:00:52.3]} 44... Rh3 {[%clk 0:00:22.5]} 45. Kxg6 {[%clk 0:00:49.4]} 45... Ke4
{[%clk 0:00:22.1]} 46. Kg7 {[%clk 0:00:48.8]} 46... Ke3 {[%clk 0:00:21.7]} 47.
Rg1 {[%clk 0:00:45.7]} 47... Kf2 {[%clk 0:00:20.6]} 0-1

[Event "*** Titled Tuesday Blitz"]
[Site "Chess.com"]
[Date "2020.04.21"]
[Round "2"]
[White "Jumbo"]
[Black "GianmarcoVaR"]
[Result "1-0"]
[WhiteElo "2824"]
[BlackElo "2566"]
[TimeControl "180+1"]
[EndTime "10:17:31 PDT"]
[Termination "Jumbo won on time"]

1. d4 {[%clk 0:03:00.9]} 1... Nf6 {[%clk 0:02:53]} 2. Nf3 {[%clk 0:03:01.4]}
2... e6 {[%clk 0:02:53.2]} 3. c4 {[%clk 0:03:01]} 3... Bb4+ {[%clk 0:02:52.9]}
4. Bd2 {[%clk 0:02:58.8]} 4... c5 {[%clk 0:02:53]} 5. g3 {[%clk 0:02:54.4]} 5...
b6 {[%clk 0:02:52.6]} 6. Bg2 {[%clk 0:02:53.9]} 6... Bb7 {[%clk 0:02:53]} 7. O-O
{[%clk 0:02:53.8]} 7... O-O {[%clk 0:02:50]} 8. Bf4 {[%clk 0:02:14.7]} 8... cxd4
{[%clk 0:02:41.5]} 9. Qxd4 {[%clk 0:02:15.6]} 9... Nc6 {[%clk 0:02:41.9]} 10.
Qd3 {[%clk 0:02:15.8]} 10... d5 {[%clk 0:02:24.5]} 11. cxd5 {[%clk 0:02:05.8]}
11... Qxd5 {[%clk 0:02:22.4]} 12. Qxd5 {[%clk 0:01:41.8]} 12... Nxd5 {[%clk
0:02:22]} 13. Bd2 {[%clk 0:01:40.5]} 13... Rfd8 {[%clk 0:02:09.8]} 14. Rc1
{[%clk 0:01:35.5]} 14... Rac8 {[%clk 0:01:49.4]} 15. a3 {[%clk 0:01:22.7]} 15...
Be7 {[%clk 0:01:47.4]} 16. Ne1 {[%clk 0:01:20.7]} 16... Nd4 {[%clk 0:01:44.8]}
17. Rxc8 {[%clk 0:01:06.4]} 17... Rxc8 {[%clk 0:01:44.6]} 18. Bxd5 {[%clk
0:01:05]} 18... Bxd5 {[%clk 0:01:41.2]} 19. Nc3 {[%clk 0:01:05.1]} 19... Bc4
{[%clk 0:01:11.6]} 20. Kf1 {[%clk 0:00:54.4]} 20... Nb3 {[%clk 0:00:41.5]} 21.
Rd1 {[%clk 0:00:52.9]} 21... Nxd2+ {[%clk 0:00:41]} 22. Rxd2 {[%clk 0:00:52.9]}
22... Rc7 {[%clk 0:00:33.7]} 23. Nc2 {[%clk 0:00:48.1]} 23... Kf8 {[%clk
0:00:31.8]} 24. Nd4 {[%clk 0:00:42.9]} 24... a6 {[%clk 0:00:12]} 25. Ke1 {[%clk
0:00:27.5]} 25... b5 {[%clk 0:00:11.4]} 26. Nc2 {[%clk 0:00:19.6]} 26... Ke8
{[%clk 0:00:04.7]} 27. Ne3 {[%clk 0:00:19.5]} 27... Bb3 {[%clk 0:00:04.4]} 28.
Rd3 {[%clk 0:00:18.7]} 28... Bf6 {[%clk 0:00:03.2]} 29. Kd2 {[%clk 0:00:18.6]}
1-0

[Event "*** Titled Tuesday Blitz"]
[Site "Chess.com"]
[Date "2020.04.21"]
[Round "2"]
[White "LittlePeasant"]
[Black "Neimar24"]
[Result "0-1"]
[WhiteElo "2782"]
[BlackElo "2563"]
[TimeControl "180+1"]
[EndTime "10:17:31 PDT"]
[Termination "Neimar24 won by resignation"]

1. d4 {[%clk 0:03:00.9]} 1... e6 {[%clk 0:02:58]} 2. c4 {[%clk 0:03:00.7]} 2...
d5 {[%clk 0:02:57]} 3. Nc3 {[%clk 0:03:00.4]} 3... Nf6 {[%clk 0:02:56.9]} 4.
cxd5 {[%clk 0:03:00.6]} 4... exd5 {[%clk 0:02:56.4]} 5. Bg5 {[%clk 0:03:00.3]}
5... Be7 {[%clk 0:02:53.7]} 6. e3 {[%clk 0:03:00.4]} 6... c6 {[%clk 0:02:44.9]}
7. Bd3 {[%clk 0:02:59.8]} 7... O-O {[%clk 0:02:44.4]} 8. Qc2 {[%clk 0:02:57.3]}
8... Re8 {[%clk 0:02:44.8]} 9. Nf3 {[%clk 0:02:57.3]} 9... Ne4 {[%clk
0:02:41.5]} 10. Bf4 {[%clk 0:02:10.4]} 10... Bf5 {[%clk 0:02:35.6]} 11. Nd2
{[%clk 0:01:57.6]} 11... Bd6 {[%clk 0:02:11.7]} 12. Bxd6 {[%clk 0:01:46.2]}
12... Qxd6 {[%clk 0:02:12.6]} 13. Ncxe4 {[%clk 0:01:25.1]} 13... dxe4 {[%clk
0:02:11.1]} 14. Nxe4 {[%clk 0:01:25.4]} 14... Bxe4 {[%clk 0:01:33.7]} 15. Bxe4
{[%clk 0:01:25.4]} 15... Qb4+ {[%clk 0:01:33.7]} 16. Ke2 {[%clk 0:01:25.4]}
16... Nd7 {[%clk 0:01:27.2]} 17. Bxh7+ {[%clk 0:01:12.5]} 17... Kh8 {[%clk
0:01:26.2]} 18. Bf5 {[%clk 0:01:13.1]} 18... Nf6 {[%clk 0:01:26]} 19. Rhd1
{[%clk 0:01:13.1]} 19... g6 {[%clk 0:01:22.7]} 20. Bh3 {[%clk 0:01:13.2]} 20...
Qb5+ {[%clk 0:01:20.3]} 21. Ke1 {[%clk 0:01:09.6]} 21... Nd5 {[%clk 0:01:16.6]}
22. g3 {[%clk 0:01:00.6]} 22... Nb4 {[%clk 0:00:54.9]} 23. Qe2 {[%clk
0:00:57.4]} 23... Qd5 {[%clk 0:00:49.5]} 24. a3 {[%clk 0:00:42.8]} 24... Na6
{[%clk 0:00:48.6]} 25. Qf1 {[%clk 0:00:36]} 25... c5 {[%clk 0:00:42.3]} 26. Bg2
{[%clk 0:00:29.6]} 26... Qb3 {[%clk 0:00:42.2]} 27. Qd3 {[%clk 0:00:30.2]} 27...
Qa4 {[%clk 0:00:38.3]} 28. Bxb7 {[%clk 0:00:28.7]} 28... Rab8 {[%clk 0:00:27.3]}
29. Qxa6 {[%clk 0:00:24.7]} 29... Qb3 {[%clk 0:00:27.4]} 30. Bf3 {[%clk
0:00:17.9]} 30... cxd4 {[%clk 0:00:27.3]} 31. Kf1 {[%clk 0:00:17.3]} 31... dxe3
{[%clk 0:00:25.4]} 32. Qd3 {[%clk 0:00:17.1]} 32... Qxb2 {[%clk 0:00:22.2]} 33.
fxe3 {[%clk 0:00:17.1]} 33... Qxh2 {[%clk 0:00:21]} 34. Qd4+ {[%clk 0:00:17.5]}
34... Kg8 {[%clk 0:00:20.8]} 35. Qh4 {[%clk 0:00:18]} 35... Qc2 {[%clk
0:00:16.4]} 36. Qh2 {[%clk 0:00:12.5]} 36... Qxh2 {[%clk 0:00:15.9]} 37. Bg2
{[%clk 0:00:11.1]} 37... Qxg3 {[%clk 0:00:16]} 0-1

[Event "*** Titled Tuesday Blitz"]
[Site "Chess.com"]
[Date "2020.04.21"]
[Round "2"]
[White "bascheyaro"]
[Black "AttilaTurzo"]
[Result "1-0"]
[WhiteElo "2699"]
[BlackElo "2482"]
[TimeControl "180+1"]
[EndTime "10:17:31 PDT"]
[Termination "bascheyaro won by resignation"]

1. d4 {[%clk 0:03:00.9]} 1... d5 {[%clk 0:03:00]} 2. c4 {[%clk 0:02:57.5]} 2...
c6 {[%clk 0:03:00.9]} 3. Nf3 {[%clk 0:02:56.7]} 3... Nf6 {[%clk 0:03:00.5]} 4.
Bg5 {[%clk 0:02:56.7]} 4... dxc4 {[%clk 0:02:56.5]} 5. Nc3 {[%clk 0:02:56.3]}
5... b5 {[%clk 0:02:55.7]} 6. e3 {[%clk 0:02:55.2]} 6... Bb7 {[%clk 0:02:55.6]}
7. Be2 {[%clk 0:02:54.7]} 7... h6 {[%clk 0:02:55.6]} 8. Bxf6 {[%clk 0:02:54.3]}
8... exf6 {[%clk 0:02:54.6]} 9. a4 {[%clk 0:02:54.6]} 9... a6 {[%clk 0:02:54.5]}
10. O-O {[%clk 0:02:53.7]} 10... Nd7 {[%clk 0:02:52.3]} 11. d5 {[%clk
0:02:38.1]} 11... b4 {[%clk 0:02:44.3]} 12. dxc6 {[%clk 0:02:36.3]} 12... Bxc6
{[%clk 0:02:45.2]} 13. Nd4 {[%clk 0:02:36.6]} 13... Bb7 {[%clk 0:02:41]} 14. Na2
{[%clk 0:02:35.2]} 14... Rc8 {[%clk 0:02:37.4]} 15. Rc1 {[%clk 0:02:33.7]} 15...
Bd5 {[%clk 0:02:26.8]} 16. Nf5 {[%clk 0:02:24.4]} 16... Ne5 {[%clk 0:02:20.8]}
17. f4 {[%clk 0:02:21.7]} 17... Nd3 {[%clk 0:02:09.6]} 18. Bxd3 {[%clk
0:01:53.6]} 18... cxd3 {[%clk 0:02:10.5]} 19. Rxc8 {[%clk 0:01:22.2]} 19... Qxc8
{[%clk 0:02:11.4]} 20. Qxd3 {[%clk 0:01:20.7]} 20... Bxa2 {[%clk 0:02:08.4]} 21.
b3 {[%clk 0:01:14.5]} 21... Bxb3 {[%clk 0:01:52.3]} 22. g4 {[%clk 0:00:45.1]}
22... Be6 {[%clk 0:01:44.1]} 23. Qe4 {[%clk 0:00:38.9]} 23... g6 {[%clk
0:01:27.3]} 24. Nd4 {[%clk 0:00:37.4]} 24... f5 {[%clk 0:01:21.4]} 25. gxf5
{[%clk 0:00:34.9]} 25... gxf5 {[%clk 0:01:22.3]} 26. Nxf5 {[%clk 0:00:35.1]}
26... Rg8+ {[%clk 0:01:20]} 27. Kf2 {[%clk 0:00:34.8]} 27... b3 {[%clk
0:01:12.6]} 28. Nd4 {[%clk 0:00:35]} 28... Be7 {[%clk 0:01:08.1]} 29. f5 {[%clk
0:00:34.1]} 29... Bd7 {[%clk 0:00:51.3]} 30. f6 {[%clk 0:00:34.2]} 30... Be6
{[%clk 0:00:51.2]} 31. fxe7 {[%clk 0:00:20.2]} 31... b2 {[%clk 0:00:44.6]} 32.
Nxe6 {[%clk 0:00:18.7]} 32... fxe6 {[%clk 0:00:42.1]} 33. Rb1 {[%clk 0:00:18.2]}
33... Rg7 {[%clk 0:00:36]} 34. Rxb2 {[%clk 0:00:17.9]} 34... Rf7+ {[%clk
0:00:35.1]} 35. Kg2 {[%clk 0:00:17.9]} 35... Rxe7 {[%clk 0:00:32.8]} 36. Qg6+
{[%clk 0:00:17]} 36... Kd7 {[%clk 0:00:28.7]} 37. Rd2+ {[%clk 0:00:16.9]} 37...
Kc7 {[%clk 0:00:26.1]} 38. Rc2+ {[%clk 0:00:17.8]} 1-0